fUST/lending_fUST_20251206
["ID","MTS","AMOUNT","RATE_DAILY","PERIOD"]
[396427093,1764964324926,-1108.58,0.00018904,2]
[396427094,1764964324936,-981.84,0.00018904,2]
[396427095,1764964324946,-500.0,0.00018904,2]
[396427096,1764964324955,-500.0,0.00018904,2]
[396427097,1764964324965,-8333.33,0.00018904,2]
[396427098,1764964324976,-505.07,0.00018904,2]
[396427099,1764964324985,-3168.21,0.00018904,2]
[396427100,1764964324996,-8522.94,0.00018904,2]
[396427101,1764964325005,-500.0,0.00018904,2]
[396427102,1764964325017,-2974.3,0.00018904,2]
[396427103,1764964325027,-882.76,0.00018904,2]
[396427104,1764964325036,-773.39,0.00018904,2]
[396427105,1764964325046,-500.0,0.00018904,2]
[396427106,1764964325055,-500.0,0.00018904,2]
[396427107,1764964325065,-500.0,0.00018904,2]
[396427108,1764964325075,-500.0,0.00018904,2]
[396427109,1764964325085,-1466.62,0.00018904,2]
[396427110,1764964325097,-500.0,0.00018904,2]
[396427111,1764964325107,-169.728144,0.00018904,2]
[396427112,1764964325117,-1900.64,0.00018904,2]
[396427113,1764964325127,-5166.32,0.00018904,2]
[396427114,1764964325137,-500.0,0.00018904,2]
[396427115,1764964325146,-559.78,0.00018904,2]
[396427116,1764964325157,-500.0,0.00018904,2]
[396427117,1764964325166,-500.0,0.00018904,2]
[396427118,1764964325175,-579.43,0.00018904,2]
[396427119,1764964325186,-1126.56,0.00018904,2]
[396427120,1764964325196,-531.72,0.00018904,2]
[396427121,1764964325205,-7493.2,0.00018904,2]
[396427122,1764964325215,-1357.94,0.00018904,2]
[396427123,1764964325226,-500.0,0.00018904,2]
[396427124,1764964325236,-2140.67,0.00018904,2]
[396427125,1764964325246,-504.84,0.00018904,2]
[396427126,1764964325255,-1456.29,0.00018904,2]
[396427127,1764964325266,-1852.77,0.00018904,2]
[396427128,1764964325276,-5290.3,0.00018904,2]
[396427129,1764964325287,-500.0,0.00018904,2]
[396427130,1764964325297,-18021.5,0.00018904,2]
[396427131,1764964325307,-5946.49,0.00018904,2]
[396427132,1764964325317,-1141.14,0.00018904,2]
[396427133,1764964325327,-500.0,0.00018904,2]
[396427134,1764964325337,-5755.4,0.00018904,2]
[396427135,1764964325347,-899.33,0.00018904,2]
[396427136,1764964325357,-500.0,0.00018904,2]
[396427137,1764964325366,-500.0,0.00018904,2]
[396427138,1764964325376,-1193.75,0.00018904,2]
[396427139,1764964325386,-500.0,0.00018904,2]
[396427140,1764964325396,-18224.67,0.00018904,2]
[396427141,1764964325405,-2555.22,0.00018904,2]
[396427142,1764964325414,-500.0,0.00018904,2]
[396427143,1764964325424,-15992.22,0.00018904,2]
[396427144,1764964325434,-500.0,0.00018904,2]
[396427145,1764964325445,-500.0,0.00018904,2]
[396427146,1764964325455,-2246.86,0.00018904,2]
[396427147,1764964325465,-500.0,0.00018904,2]
[396427148,1764964325475,-500.0,0.00018904,2]
[396427149,1764964325485,-1396.97,0.00018904,2]
[396427150,1764964325495,-699.92,0.00018904,2]
[396427151,1764964325504,-1327.48,0.00018904,2]
[396427152,1764964325514,-3223.39,0.00018904,2]
[396427153,1764964325524,-1347.5,0.00018904,2]
[396427154,1764964325533,-2513.49,0.00018904,2]
[396427155,1764964325543,-667.1,0.00018904,2]
[396427156,1764964325552,-500.0,0.00018904,2]
[396427157,1764964325562,-2175.03,0.00018904,2]
[396427158,1764964325572,-40156.73,0.00018904,2]
[396427159,1764964325582,-906.92,0.00018904,2]
[396427160,1764964325592,-500.0,0.00018904,2]
[396427161,1764964325601,-10167.34,0.00018904,2]
[396427162,1764964325611,-3602.82,0.00018904,2]
[396427163,1764964325620,-500.0,0.00018904,2]
[396427164,1764964325631,-690.39,0.00018904,2]
[396427165,1764964325640,-871.12,0.00018904,2]
[396427166,1764964325650,-570.25,0.00018904,2]
[396427167,1764964325660,-3182.83,0.00018904,2]
[396427168,1764964325671,-500.0,0.00018904,2]
[396427169,1764964325680,-2410.62,0.00018904,2]
[396427170,1764964325689,-500.0,0.00018904,2]
[396427171,1764964325699,-500.0,0.00018904,2]
[396427172,1764964325709,-2260.75,0.00018904,2]
[396427173,1764964325719,-1031.43,0.00018904,2]
[396427174,1764964325728,-500.0,0.00018904,2]
[396427175,1764964325738,-1240.63,0.00018904,2]
[396427176,1764964325749,-500.0,0.00018904,2]
[396427177,1764964325759,-3147.39,0.00018904,2]
[396427178,1764964325768,-535.52,0.00018904,2]
[396427179,1764964325778,-3754.05,0.00018904,2]
[396427180,1764964325788,-2393.17,0.00018904,2]
[396427181,1764964325798,-640.85,0.00018904,2]
[396427182,1764964325809,-700.33,0.00018904,2]
[396427183,1764964325819,-2634.96,0.00018904,2]
[396427184,1764964325830,-500.0,0.00018904,2]
[396427185,1764964325839,-500.0,0.00018904,2]
[396427186,1764964325849,-500.0,0.00018904,2]
[396427187,1764964325858,-3889.17,0.00018904,2]
[396427188,1764964325868,-611.39625132,0.00018904,2]
[396427189,1764964325877,-786.42,0.00018904,2]
[396427190,1764964325887,-500.0,0.00018904,2]
[396427191,1764964325896,-1453.14,0.00018904,2]
[396427192,1764964325907,-500.0,0.00018904,2]
[396427193,1764964325917,-2259.44,0.00018904,2]
[396427194,1764964325927,-642.0,0.00018904,2]
[396427195,1764964325937,-291.20338326,0.00018944,2]
[396427196,1764964325946,-300000.0,0.00018999,2]
[396427197,1764964325956,-29131.0,0.00019,2]
[396427198,1764964325966,-19925.97039651,0.00019,2]
[396427199,1764964325977,-1148.15278364,0.00019051,2]
[396427200,1764964325987,-151.53026821,0.00019089,2]
[396427201,1764964325997,-360.0,0.00019096,2]
[396427202,1764964326007,-1000.0,0.00019141,10]
[396427203,1764964326020,-1240.64296,0.00019178,2]
[396427204,1764964326030,-150.0,0.00019178,2]
[396427205,1764964326040,-300.0,0.00019178,2]
[396427206,1764964326050,-450.0,0.00019178,2]
[396427207,1764964326062,-600.0,0.00019178,2]
[396427208,1764964326072,-750.0,0.00019178,2]
[396427209,1764964326082,-824.22024486,0.00019178,2]
[396427210,1764964326092,-500.0,0.00019178,2]
[396427211,1764964326101,-500.0,0.00019178,2]
[396427212,1764964326111,-500.0,0.00019178,2]
[396427213,1764964326120,-171.21212219,0.00019178,2]
[396427214,1764964326130,-674.84,0.00019178,2]
[396427215,1764964326139,-759.28,0.00019178,2]
[396427216,1764964326149,-500.0,0.00019178,2]
[396427217,1764964326158,-821.01,0.00019178,2]
[396427218,1764964326168,-3248.83,0.00019178,2]
[396427219,1764964326178,-500.0,0.00019178,2]
[396427220,1764964326188,-500.0,0.00019178,2]
[396427221,1764964326199,-596.14,0.00019178,2]
[396427222,1764964326209,-766.62,0.00019178,2]
[396427223,1764964326219,-677.48,0.00019178,2]
[396427224,1764964326228,-710.03,0.00019178,2]
[396427225,1764964326238,-978.11,0.00019178,2]
[396427226,1764964326248,-500.0,0.00019178,2]
[396427227,1764964326261,-950.77,0.00019178,2]
[396427228,1764964326271,-2195.96,0.00019178,2]
[396427229,1764964326281,-500.0,0.00019178,2]
[396427230,1764964326291,-500.0,0.00019178,2]
[396427231,1764964326301,-831.34,0.00019178,2]
[396427232,1764964326311,-500.0,0.00019178,2]
[396427233,1764964326321,-609.85,0.00019178,2]
[396427234,1764964326330,-1164.68,0.00019178,2]
[396427235,1764964326342,-500.0,0.00019178,2]
[396427236,1764964326352,-500.0,0.00019178,2]
[396427237,1764964326363,-768.78,0.00019178,2]
[396427238,1764964326373,-609.15,0.00019178,2]
[396427239,1764964326382,-500.0,0.00019178,2]
[396427240,1764964326392,-1330.04,0.00019178,2]
[396427241,1764964326404,-913.97,0.00019178,2]
[396427242,1764964326414,-500.0,0.00019178,2]
[396427243,1764964326424,-500.0,0.00019178,2]
[396427244,1764964326433,-500.0,0.00019178,2]
[396427245,1764964326443,-738.1,0.00019178,2]
[396427246,1764964326454,-1071.4,0.00019178,2]
[396427247,1764964326464,-1543.99,0.00019178,2]
[396427248,1764964326473,-1862.41,0.00019178,2]
[396427249,1764964326482,-500.0,0.00019178,2]
[396427250,1764964326494,-500.0,0.00019178,2]
[396427251,1764964326504,-939.06,0.00019178,2]
[396427252,1764964326514,-1733.31,0.00019178,2]
[396427253,1764964326523,-2719.16,0.00019178,2]
[396427254,1764964326534,-826.15,0.00019178,2]
[396427255,1764964326544,-500.0,0.00019178,2]
[396427256,1764964326555,-500.0,0.00019178,2]
[396427257,1764964326565,-1078.39,0.00019178,2]
[396427258,1764964326574,-708.58,0.00019178,2]
[396427259,1764964326584,-1771.78,0.00019178,2]
[396427260,1764964326593,-500.0,0.00019178,2]
[396427261,1764964326603,-500.0,0.00019178,2]
[396427262,1764964326613,-500.0,0.00019178,2]
[396427263,1764964326623,-500.0,0.00019178,2]
[396427264,1764964326632,-672.42,0.00019178,2]
[396427265,1764964326642,-874.07,0.00019178,2]
[396427266,1764964326651,-415.48446466,0.00019178,2]
[396427267,1764964326660,-611.92,0.00019178,2]
[396427268,1764964326669,-2821.54,0.00019178,2]
[396427269,1764964326679,-500.0,0.00019178,2]
[396427270,1764964326688,-434.43289193,0.00019178,2]
[396427271,1764964326697,-500.0,0.00019178,2]
[396427272,1764964326707,-636.11,0.00019178,2]
[396427273,1764964326716,-500.0,0.00019178,2]
[396427274,1764964326726,-971.51,0.00019178,2]
[396427275,1764964326737,-906.08,0.00019178,2]
[396427276,1764964326747,-500.0,0.00019178,2]
[396427277,1764964326756,-571.85,0.00019178,2]
[396427278,1764964326766,-500.0,0.00019178,2]
[396427279,1764964326775,-1069.86,0.00019178,2]
[396427280,1764964326785,-500.0,0.00019178,2]
[396427281,1764964326794,-1462.76,0.00019178,2]
[396427282,1764964326804,-502.82,0.00019178,2]
[396427283,1764964326813,-500.0,0.00019178,2]
[396427284,1764964326823,-2534.3,0.00019178,2]
[396427285,1764964326832,-500.0,0.00019178,2]
[396427286,1764964326842,-500.0,0.00019178,2]
[396427287,1764964326851,-500.0,0.00019178,2]
[396427288,1764964326860,-500.0,0.00019178,2]
[396427289,1764964326869,-647.83,0.00019178,2]
[396427290,1764964326879,-1092.74,0.00019178,2]
[396427291,1764964326889,-500.0,0.00019178,2]
[396427292,1764964326899,-500.0,0.00019178,2]
[396427293,1764964326908,-500.0,0.00019178,2]
[396427294,1764964326923,-1405.79,0.00019178,2]
[396427295,1764964327139,-1078.91,0.00019178,2]
[396427296,1764964327159,-500.0,0.00019178,2]
[396427297,1764964327168,-1311.8,0.00019178,2]
[396427298,1764964327177,-1734.17,0.00019178,2]
[396427299,1764964327186,-698.12,0.00019178,2]
[396427300,1764964327196,-1866.07,0.00019178,2]
[396427301,1764964327205,-500.0,0.00019178,2]
[396427302,1764964327214,-500.0,0.00019178,2]
[396427303,1764964327223,-1534.72,0.00019178,2]
[396427304,1764964327233,-524.96,0.00019178,2]
[396427305,1764964327243,-510.69369982,0.00019178,2]
[396427306,1764964327252,-2060.56,0.00019178,2]
[396427307,1764964327262,-500.0,0.00019178,2]
[396427308,1764964327272,-701.23,0.00019178,2]
[396427309,1764964327282,-673.73,0.00019178,2]
[396427310,1764964327291,-1698.62,0.00019178,2]
[396427311,1764964327301,-658.93,0.00019178,2]
[396427312,1764964327311,-742.38,0.00019178,2]
[396427313,1764964327320,-747.63,0.00019178,2]
[396427314,1764964327330,-667.01,0.00019178,2]
[396427315,1764964327339,-500.0,0.00019178,2]
[396427316,1764964327348,-500.0,0.00019178,2]
[396427317,1764964327358,-721.72,0.00019178,2]
[396427318,1764964327368,-500.0,0.00019178,2]
[396427319,1764964327377,-1151.69,0.00019178,2]
[396427320,1764964327387,-991.55,0.00019178,2]
[396427321,1764964327396,-336.23865671,0.00019178,2]
[396427322,1764964327406,-500.0,0.00019178,2]
[396427323,1764964327415,-596.6,0.00019178,2]
[396427324,1764964327425,-1963.89,0.00019178,2]
[396427325,1764964327434,-2056.09,0.00019178,2]
[396427326,1764964327444,-1932.03,0.00019178,2]
[396427327,1764964327453,-1925.2,0.00019178,2]
[396427328,1764964327462,-694.04,0.00019178,2]
[396427329,1764964327471,-1279.51,0.00019178,2]
[396427330,1764964327482,-552.82,0.00019178,2]
[396427331,1764964327492,-1066.32,0.00019178,2]
[396427332,1764964327501,-500.0,0.00019178,2]
[396427333,1764964327511,-1282.6,0.00019178,2]
[396427334,1764964327521,-434.67801106,0.00019178,2]
[396427335,1764964327530,-1077.48,0.00019178,2]
[396427336,1764964327540,-1056.93,0.00019178,2]
[396427337,1764964327549,-1405.18,0.00019178,2]
[396427338,1764964327559,-798.61,0.00019178,2]
[396427339,1764964327568,-500.0,0.00019178,2]
[396427340,1764964327578,-1114.7,0.00019178,2]
[396427341,1764964327588,-867.37,0.00019178,2]
[396427342,1764964327598,-500.0,0.00019178,2]
[396427343,1764964327607,-773.03,0.00019178,2]
[396427344,1764964327618,-2394.89,0.00019178,2]
[396427345,1764964327628,-500.4,0.00019178,2]
[396427346,1764964327638,-500.0,0.00019178,2]
[396427347,1764964327647,-1140.55,0.00019178,2]
[396427348,1764964327657,-500.0,0.00019178,2]
[396427349,1764964327666,-753.55,0.00019178,2]
[396427350,1764964327676,-500.0,0.00019178,2]
[396427351,1764964327685,-1160.45,0.00019178,2]
[396427352,1764964327695,-507.01,0.00019178,2]
[396427353,1764964327704,-500.0,0.00019178,2]
[396427354,1764964327714,-801.76,0.00019178,2]
[396427355,1764964327724,-542.43,0.00019178,2]
[396427356,1764964327736,-2713.85,0.00019178,2]
[396427357,1764964327746,-500.0,0.00019178,2]
[396427358,1764964327755,-914.46,0.00019178,2]
[396427359,1764964327764,-500.0,0.00019178,2]
[396427360,1764964327774,-4419.03,0.00019178,2]
[396427361,1764964327784,-526.41,0.00019178,2]
[396427362,1764964327793,-588.91,0.00019178,2]
[396427363,1764964327803,-981.61,0.00019178,2]
[396427364,1764964327813,-1146.46,0.00019178,2]
[396427365,1764964327822,-562.03,0.00019178,2]
[396427366,1764964327832,-1195.63,0.00019178,2]
[396427367,1764964327841,-500.0,0.00019178,2]
[396427368,1764964327850,-2202.96,0.00019178,2]
[396427369,1764964327859,-218.79333314,0.00019178,2]
[396427370,1764964327869,-500.0,0.00019178,2]
[396427371,1764964327878,-769.64,0.00019178,2]
[396427372,1764964327888,-813.86,0.00019178,2]
[396427373,1764964327897,-530.06,0.00019178,2]
[396427374,1764964327907,-500.0,0.00019178,2]
[396427375,1764964327917,-708.5,0.00019178,2]
[396427376,1764964327926,-2092.31,0.00019178,2]
[396427377,1764964327936,-500.0,0.00019178,2]
[396427378,1764964327946,-500.0,0.00019178,2]
[396427379,1764964327955,-528.45,0.00019178,2]
[396427380,1764964327965,-500.0,0.00019178,2]
[396427381,1764964327975,-532.79,0.00019178,2]
[396427382,1764964327984,-1131.46,0.00019178,2]
[396427383,1764964327994,-1131.9,0.00019178,2]
[396427384,1764964328004,-500.0,0.00019178,2]
[396427385,1764964328015,-500.0,0.00019178,2]
[396427386,1764964328026,-608.86,0.00019178,2]
[396427387,1764964328037,-880.35,0.00019178,2]
[396427388,1764964328047,-784.6,0.00019178,2]
[396427389,1764964328057,-500.0,0.00019178,2]
[396427390,1764964328067,-589.81,0.00019178,2]
[396427391,1764964328076,-577.27359221,0.00019178,2]
[396427392,1764964328087,-500.0,0.00019178,2]
[396427393,1764964328099,-500.0,0.00019178,2]
[396427394,1764964328109,-537.52,0.00019178,2]
[396427395,1764964328119,-1014.04,0.00019178,2]
[396427396,1764964328130,-2220.46,0.00019178,2]
[396427397,1764964328139,-2190.66,0.00019178,2]
[396427398,1764964328150,-1158.75,0.00019178,2]
[396427399,1764964328160,-681.06,0.00019178,2]
[396427400,1764964328169,-500.0,0.00019178,2]
[396427401,1764964328179,-500.0,0.00019178,2]
[396427402,1764964328190,-2115.78,0.00019178,2]
[396427403,1764964328200,-500.0,0.00019178,2]
[396427404,1764964328211,-766.35,0.00019178,2]
[396427405,1764964328221,-966.12,0.00019178,2]
[396427406,1764964328233,-914.28,0.00019178,2]
[396427407,1764964328248,-982.55,0.00019178,2]
[396427408,1764964328258,-640.99349228,0.00019178,2]
[396427409,1764964328268,-500.0,0.00019178,2]
[396427410,1764964328278,-936.35,0.00019178,2]
[396427411,1764964328292,-500.0,0.00019178,2]
[396427412,1764964328302,-500.0,0.00019178,2]
[396427413,1764964328311,-500.0,0.00019178,2]
[396427414,1764964328322,-500.0,0.00019178,2]
[396427415,1764964328333,-749.63,0.00019178,2]
[396427416,1764964328342,-1641.15,0.00019178,2]
[396427417,1764964328352,-1076.77,0.00019178,2]
[396427418,1764964328362,-500.0,0.00019178,2]
[396427419,1764964328372,-500.0,0.00019178,2]
[396427420,1764964328382,-500.0,0.00019178,2]
[396427421,1764964328393,-603.68,0.00019178,2]
[396427422,1764964328403,-698.96,0.00019178,2]
[396427423,1764964328412,-1666.18,0.00019178,2]
[396427424,1764964328422,-671.97,0.00019178,2]
[396427425,1764964328432,-502.19,0.00019178,2]
[396427426,1764964328442,-500.0,0.00019178,2]
[396427427,1764964328452,-2087.17,0.00019178,2]
[396427428,1764964328461,-500.0,0.00019178,2]
[396427429,1764964328471,-516.65,0.00019178,2]
[396427430,1764964328480,-475.60279114,0.00019178,2]
[396427431,1764964328491,-500.0,0.00019178,2]
[396427432,1764964328501,-2037.83,0.00019178,2]
[396427433,1764964328511,-501.13,0.00019178,2]
[396427434,1764964328520,-500.0,0.00019178,2]
[396427435,1764964328530,-571.62,0.00019178,2]
[396427436,1764964328540,-500.0,0.00019178,2]
[396427437,1764964328549,-1758.23,0.00019178,2]
[396427438,1764964328559,-4101.23,0.00019178,2]
[396427439,1764964328569,-1128.95,0.00019178,2]
[396427440,1764964328578,-2336.08,0.00019178,2]
[396427441,1764964328588,-735.18,0.00019178,2]
[396427442,1764964328598,-656.91,0.00019178,2]
[396427443,1764964328607,-942.22,0.00019178,2]
[396427444,1764964328617,-606.67,0.00019178,2]
[396427445,1764964328626,-500.0,0.00019178,2]
[396427446,1764964328636,-866.26,0.00019178,2]
[396427447,1764964328645,-500.13,0.00019178,2]
[396427448,1764964328655,-500.0,0.00019178,2]
[396427449,1764964328665,-500.0,0.00019178,2]
[396427450,1764964328675,-500.0,0.00019178,2]
[396427451,1764964328685,-748.38,0.00019178,2]
[396427452,1764964328695,-500.0,0.00019178,2]
[396427453,1764964328706,-784.77,0.00019178,2]
[396427454,1764964328716,-500.0,0.00019178,2]
[396427455,1764964328726,-3000.65,0.00019178,2]
[396427456,1764964328735,-525.35,0.00019178,2]
[396427457,1764964328746,-632.24,0.00019178,2]
[396427458,1764964328757,-500.0,0.00019178,2]
[396427459,1764964328767,-734.19,0.00019178,2]
[396427460,1764964328777,-500.0,0.00019178,2]
[396427461,1764964328788,-500.0,0.00019178,2]
[396427462,1764964328797,-1121.55,0.00019178,2]
[396427463,1764964328808,-4195.91,0.00019178,2]
[396427464,1764964328818,-500.0,0.00019178,2]
[396427465,1764964328829,-1169.87,0.00019178,2]
[396427466,1764964328839,-500.0,0.00019178,2]
[396427467,1764964328849,-500.0,0.00019178,2]
[396427468,1764964328859,-1721.78,0.00019178,2]
[396427469,1764964328869,-797.93,0.00019178,2]
[396427470,1764964328880,-500.0,0.00019178,2]
[396427471,1764964328889,-3352.24,0.00019178,2]
[396427472,1764964328898,-701.25,0.00019178,2]
[396427473,1764964328908,-500.0,0.00019178,2]
[396427474,1764964328918,-1865.02,0.00019178,2]
[396427475,1764964328928,-500.0,0.00019178,2]
[396427476,1764964328937,-547.35,0.00019178,2]
[396427477,1764964328947,-1140.86,0.00019178,2]
[396427478,1764964328957,-1061.3,0.00019178,2]
[396427479,1764964328967,-581.3,0.00019178,2]
[396427480,1764964328976,-561.53,0.00019178,2]
[396427481,1764964328986,-1248.52,0.00019178,2]
[396427482,1764964328996,-500.0,0.00019178,2]
[396427483,1764964329007,-565.64,0.00019178,2]
[396427484,1764964329020,-1569.73,0.00019178,2]
[396427485,1764964329030,-1818.55,0.00019178,2]
[396427486,1764964329039,-522.2,0.00019178,2]
[396427487,1764964329050,-875.06,0.00019178,2]
[396427488,1764964329059,-500.0,0.00019178,2]
[396427489,1764964329069,-1114.54,0.00019178,2]
[396427490,1764964329079,-500.0,0.00019178,2]
[396427491,1764964329089,-500.0,0.00019178,2]
[396427492,1764964329100,-500.0,0.00019178,2]
[396427493,1764964329110,-1202.31,0.00019178,2]
[396427494,1764964329120,-1019.58,0.00019178,2]
[396427495,1764964329129,-1283.59,0.00019178,2]
[396427496,1764964329139,-1200.75,0.00019178,2]
[396427497,1764964329150,-506.37,0.00019178,2]
[396427498,1764964329160,-500.0,0.00019178,2]
[396427499,1764964329170,-500.0,0.00019178,2]
[396427500,1764964329180,-1231.58,0.00019178,2]
[396427501,1764964329189,-654.39,0.00019178,2]
[396427502,1764964329199,-506.68,0.00019178,2]
[396427503,1764964329208,-500.0,0.00019178,2]
[396427504,1764964329217,-500.0,0.00019178,2]
[396427505,1764964329227,-1113.91,0.00019178,2]
[396427506,1764964329237,-663.62,0.00019178,2]
[396427507,1764964329247,-753.47,0.00019178,2]
[396427508,1764964329256,-1445.18,0.00019178,2]
[396427509,1764964329266,-500.0,0.00019178,2]
[396427510,1764964329275,-500.0,0.00019178,2]
[396427511,1764964329284,-500.0,0.00019178,2]
[396427512,1764964329294,-780.5,0.00019178,2]
[396427513,1764964329303,-889.08,0.00019178,2]
[396427514,1764964329312,-500.0,0.00019178,2]
[396427515,1764964329321,-2835.2,0.00019178,2]
[396427516,1764964329330,-500.0,0.00019178,2]
[396427517,1764964329340,-500.0,0.00019178,2]
[396427518,1764964329349,-1729.46,0.00019178,2]
[396427519,1764964329359,-1979.46,0.00019178,2]
[396427520,1764964329368,-575.86,0.00019178,2]
[396427521,1764964329377,-1316.03,0.00019178,2]
[396427522,1764964329387,-500.0,0.00019178,2]
[396427523,1764964329397,-1835.34,0.00019178,2]
[396427524,1764964329406,-908.87,0.00019178,2]
[396427525,1764964329416,-653.14,0.00019178,2]
[396427526,1764964329425,-503.35936984,0.00019178,2]
[396427527,1764964329435,-557.4,0.00019178,2]
[396427528,1764964329444,-500.0,0.00019178,2]
[396427529,1764964329454,-1274.81,0.00019178,2]
[396427530,1764964329463,-978.78,0.00019178,2]
[396427531,1764964329473,-500.0,0.00019178,2]
[396427532,1764964329483,-500.0,0.00019178,2]
[396427533,1764964329571,-1825.48,0.00019178,2]
[396427534,1764964329587,-1459.61,0.00019178,2]
[396427535,1764964329607,-500.0,0.00019178,2]
[396427536,1764964329619,-151.0,0.00019178,2]
[396427537,1764964329630,-1362.88,0.00019178,2]
[396427538,1764964329639,-2330.6,0.00019178,2]
[396427539,1764964329648,-2129.96,0.00019178,2]
[396427540,1764964329658,-500.0,0.00019178,2]
[396427541,1764964329667,-500.0,0.00019178,2]
[396427542,1764964329676,-664.95,0.00019178,2]
[396427543,1764964329685,-1189.18,0.00019178,2]
[396427544,1764964329694,-500.0,0.00019178,2]
[396427545,1764964329704,-989.95,0.00019178,2]
[396427546,1764964329713,-1775.43,0.00019178,2]
[396427547,1764964329722,-1334.27,0.00019178,2]
[396427548,1764964329731,-500.0,0.00019178,2]
[396427549,1764964329741,-500.0,0.00019178,2]
[396427550,1764964329751,-500.0,0.00019178,2]
[396427551,1764964329760,-796.25,0.00019178,2]
[396427552,1764964329770,-500.0,0.00019178,2]
[396427553,1764964329779,-4147.96,0.00019178,2]
[396427554,1764964329789,-500.0,0.00019178,2]
[396427555,1764964329799,-677.16,0.00019178,2]
[396427556,1764964329810,-3508.67,0.00019178,2]
[396427557,1764964329819,-3856.98,0.00019178,2]
[396427558,1764964329828,-1405.37,0.00019178,2]
[396427559,1764964329837,-500.0,0.00019178,2]
[396427560,1764964329847,-8546.16,0.00019178,2]
[396427561,1764964329856,-595.52,0.00019178,2]
[396427562,1764964329866,-2012.27,0.00019178,2]
[396427563,1764964329876,-760.14,0.00019178,2]
[396427564,1764964329886,-869.37,0.00019178,2]
[396427565,1764964329895,-2862.43,0.00019178,2]
[396427566,1764964329905,-500.0,0.00019178,2]
[396427567,1764964329915,-500.0,0.00019178,2]
[396427568,1764964329925,-1260.61,0.00019178,2]
[396427569,1764964329934,-27168.59,0.00019178,2]
[396427570,1764964329944,-2573.74,0.00019178,2]
[396427571,1764964329953,-500.0,0.00019178,2]
[396427572,1764964329962,-500.0,0.00019178,2]
[396427573,1764964329971,-1519.74,0.00019178,2]
[396427574,1764964329980,-3739.24,0.00019178,2]
[396427575,1764964329989,-837.97,0.00019178,2]
[396427576,1764964329999,-2210.97,0.00019178,2]
[396427577,1764964330009,-879.68,0.00019178,2]
[396427578,1764964330022,-934.83,0.00019178,2]
[396427579,1764964330033,-1534.0,0.00019178,2]
[396427580,1764964330044,-613.38,0.00019178,2]
[396427581,1764964330055,-1145.34,0.00019178,2]
[396427582,1764964330065,-7737.29,0.00019178,2]
[396427583,1764964330076,-2897.13,0.00019178,2]
[396427584,1764964330087,-2245.52,0.00019178,2]
[396427585,1764964330099,-3989.26,0.00019178,2]
[396427586,1764964330109,-1590.89,0.00019178,2]
[396427587,1764964330118,-4880.82,0.00019178,2]
[396427588,1764964330128,-500.0,0.00019178,2]
[396427589,1764964330137,-500.0,0.00019178,2]
[396427590,1764964330147,-2037.18,0.00019178,2]
[396427591,1764964330156,-500.0,0.00019178,2]
[396427592,1764964330164,-1939.29,0.00019178,2]